bitfinex/quotes_ETHUSD_20230904
["timestamp","ask_amount","ask_price","bid_price","bid_amount"]
[1693829643142,2.14447644,1631.8,1631.7,1.407]
[1693829648067,5.24447644,1631.8,1631.7,1.407]
[1693829662153,11.42497463,1631.8,1631.7,1.407]
[1693829676562,5.24447644,1631.8,1631.7,1.407]
[1693829677333,5.24447644,1631.8,1631.7,4.48885404]
[1693829677540,5.24447644,1631.8,1631.7,4.93773944]
[1693829680262,5.24447644,1631.8,1631.7,4.93773944]
[1693829690110,5.24247644,1631.8,1631.7,4.93773944]
[1693829700380,5.24247644,1631.8,1631.7,6.00231249]
[1693829701194,5.24247644,1631.8,1631.7,4.93773944]
[1693829701406,5.24247644,1631.8,1631.7,6.00229464]
[1693829702911,5.24247644,1631.8,1631.7,4.48885404]
[1693829706088,5.24247644,1631.8,1631.7,1.407]
[1693829706290,5.24247644,1631.8,1631.6,1.407]
[1693829707634,6.16165041,1631.8,1631.6,1.407]
[1693829711629,6.10835041,1631.8,1631.6,1.407]
[1693829712901,6.10835041,1631.8,1631.7,1.407]
[1693829722348,6.78332464,1631.8,1631.5,1.407]
[1693829722546,7.42471653,1631.8,1631.5,1.407]
[1693829723120,6.7497423,1631.8,1631.5,1.407]
[1693829724152,6.7497423,1631.8,1631.6,0.29226562]
[1693829725036,6.7497423,1631.8,1631.6,1.69926562]
[1693829725842,6.10835041,1631.8,1631.6,1.69926562]
[1693829726036,6.7497423,1631.8,1631.6,1.69926562]
[1693829726925,6.10835041,1631.8,1631.6,1.69926562]
[1693829737779,6.7497423,1631.8,1631.6,1.69926562]
[1693829738062,6.10835041,1631.8,1631.6,1.69926562]
[1693829739652,6.7497423,1631.8,1631.6,1.69926562]
[1693829742583,6.10835041,1631.8,1631.7,1.407]
[1693829742944,6.10835041,1631.8,1631.7,1.7015277]
[1693829749890,6.7497423,1631.8,1631.7,1.7015277]
[1693829750387,12.93033304,1631.8,1631.7,1.7015277]
[1693829763240,6.10835041,1631.8,1631.7,1.7015277]
[1693829764555,5.18917644,1631.8,1631.7,1.7015277]
[1693829770473,5.77223327,1631.8,1631.7,1.7015277]
[1693829770778,5.77223327,1631.8,1631.7,0.2945277]
[1693829771073,15.91262918,1631.8,1631.7,0.2945277]
[1693829771438,15.91262918,1631.8,1631.3,33.21862395]
[1693829771638,6.82382131,1631.7,1631.4,1.06479774]
[1693829771961,0.68238213,1631.6,1631.3,31.05392395]
[1693829772140,1.60306226,1631.7,1631.2,2.05092395]
[1693829772345,1.60306226,1631.7,1631.3,1.06483493]
[1693829772346,3.29086226,1631.7,1631.3,1.06483493]
[1693829772656,2.14487069,1631.5,1631.3,1.06483493]
[1693829772833,3.29086226,1631.7,1631.3,1.06483493]
[1693829773041,1.08029868,1631.3,1631.2,2.05092395]
[1693829773241,1.08029868,1631.3,1631.2,3.11575861]
[1693829776299,1.08029868,1631.3,1631.2,2.47183466]
[1693829777587,1.08029868,1631.3,1631.2,1.06483466]
[1693829777887,1.08029868,1631.3,1631.1,3.6037]
[1693829782007,1.08029868,1631.3,1631.2,1.407]
[1693829783694,1.08029868,1631.3,1631.2,2.47185996]
[1693829785408,4.18029868,1631.3,1631.2,2.47185996]
[1693829786978,4.18029868,1631.3,1631.2,1.407]
[1693829788404,4.59832855,1631.3,1631.2,1.407]
[1693829790112,4.18029868,1631.3,1631.2,1.407]
[1693829808939,4.18029868,1631.3,1631.2,2.471848]
[1693829814645,4.18029868,1631.3,1631.2,1.064848]
[1693829815052,4.18029868,1631.3,1631.2,2.471848]
[1693829817453,4.18029868,1631.3,1631.2,3.11577195]
[1693829817668,4.59832855,1631.3,1631.2,3.11577195]
[1693829817868,4.59832855,1631.3,1631.2,2.471848]
[1693829818271,4.59832855,1631.3,1631.2,3.11577195]
[1693829818643,4.18029868,1631.3,1631.2,3.11577195]
[1693829819087,4.18029868,1631.3,1631.2,2.471848]
[1693829819284,4.18029868,1631.3,1631.2,3.11577195]
[1693829819982,4.18029868,1631.3,1631.2,2.471848]
[1693829821289,4.18029868,1631.3,1631.2,2.47191039]
[1693829821580,4.59832855,1631.3,1631.2,1.06491039]
[1693829822183,4.59832855,1631.3,1631.2,2.47191039]
[1693829824114,4.59832855,1631.3,1631.2,1.06491039]
[1693829824423,3.51802987,1631.3,1631.2,1.06491039]
[1693829824717,4.43748555,1631.3,1631.1,0.97043775]
[1693829824879,0.44374856,1631.2,1631.1,0.97043775]
[1693829825076,0.44374856,1631.2,1631.0,0.96586456]
[1693829825272,2.14539659,1631.1,1631.0,0.96586456]
[1693829825471,2.14539659,1631.1,1631.0,2.37286456]
[1693829827079,2.14539659,1631.1,1631.0,1.407]
[1693829827431,2.14539659,1631.1,1631.0,2.37286456]
[1693829827717,2.14539659,1631.1,1631.0,4.14593385]
[1693829828015,2.14539659,1631.1,1631.0,3.77986456]
[1693829828387,2.14539659,1631.1,1631.0,2.37286456]
[1693829828950,4.8058,1631.3,1631.0,2.37286456]
[1693829829250,4.8058,1631.3,1631.1,1.407]
[1693829829410,6.95093361,1631.3,1631.1,1.407]
[1693829829612,0.69509336,1631.2,1631.1,1.407]
[1693829830202,0.69509336,1631.2,1631.0,1.407]
[1693829830937,0.69509336,1631.2,1630.9,2.37286456]
[1693829831645,2.14526509,1631.2,1631.0,1.407]
[1693829831845,2.14526509,1631.2,1631.1,1.407]
[1693829833501,2.14526509,1631.2,1631.0,1.407]
[1693829834804,2.14526509,1631.2,1631.0,2.05024265]
[1693829841455,2.14526509,1631.2,1631.0,1.407]
[1693829841653,2.6697916,1631.2,1631.0,1.407]
[1693829843783,2.6697916,1631.2,1631.1,1.407]
[1693829846171,2.14526509,1631.2,1631.1,1.407]
[1693829846341,2.14526509,1631.2,1631.1,2.4719588]
[1693829849370,2.14526509,1631.2,1631.1,5.55381284]
[1693829849566,2.14526509,1631.2,1631.1,6.19705549]
[1693829849729,2.14526509,1631.2,1631.1,7.16292005]
[1693829850067,2.14526509,1631.2,1631.1,8.14869489]
[1693829856309,2.14526509,1631.2,1631.1,7.50545224]
[1693829856711,2.14526509,1631.2,1631.1,8.14840536]
[1693829859218,2.14526509,1631.2,1631.1,7.08344656]
[1693829859371,2.14526509,1631.2,1631.1,8.14827324]
[1693829865160,2.14526509,1631.2,1631.1,7.18240868]
[1693829867978,3.1,1631.3,1631.1,7.18240868]
[1693829868270,3.1,1631.3,1631.2,4.14668072]
[1693829868442,3.1,1631.3,1631.2,5.55368072]
[1693829878604,3.1,1631.3,1631.2,1.06482668]
[1693829878891,6.1,1631.3,1630.8,0.64295312]
[1693829879073,8.38674383,1631.3,1630.8,1.7080305]
[1693829879247,8.38674383,1631.3,1630.7,2.24019314]
[1693829879448,3.0,1631.2,1630.7,3.305291]
[1693829879886,2.14539659,1631.1,1630.7,3.305291]
[1693829880086,2.65993625,1631.1,1630.8,1.407]
[1693829880303,4.30343625,1631.1,1630.9,1.407]
[1693829880657,2.65993625,1631.1,1630.9,1.407]
[1693829881250,2.65993625,1631.1,1630.7,3.64719314]
[1693829881450,2.65993625,1631.1,1630.9,1.407]
[1693829883554,2.65993625,1631.1,1630.7,2.24019314]
[1693829883555,2.14539659,1631.1,1631.0,1.407]
[1693829884002,2.14539659,1631.1,1631.0,3.87895371]
[1693829884315,2.14539659,1631.1,1631.0,5.48777139]
[1693829884463,4.01945568,1631.3,1631.0,5.48715133]
[1693829884651,3.1,1631.3,1631.1,4.78914692]
[1693829884854,3.1,1631.3,1631.2,1.5438684]
[1693829885096,3.1,1631.3,1631.2,2.9508684]
[1693829887212,3.1,1631.3,1631.2,6.03272244]
[1693829887417,3.81958297,1631.7,1631.2,6.67506161]
[1693829887635,3.81958297,1631.7,1631.6,1.407]
[1693829887799,2.14468297,1631.7,1631.6,1.407]
[1693829891840,2.14468297,1631.7,1631.6,4.48885404]
[1693829892132,2.14468297,1631.7,1631.6,1.407]
[1693829895739,2.14468297,1631.7,1631.3,0.64233917]
[1693829895934,2.14468297,1631.7,1631.1,4.61244375]
[1693829895935,5.14468297,1631.7,1631.1,4.61244375]
[1693829896135,0.5144683,1631.6,1631.1,3.00424002]
[1693829896302,3.5144683,1631.6,1631.2,1.407]
[1693829896502,2.14513361,1631.3,1631.2,1.407]
[1693829903735,2.14513361,1631.3,1631.1,1.407]
[1693829905062,2.14513361,1631.3,1631.0,1.407]
[1693829906388,2.14513361,1631.3,1630.8,0.64233917]
[1693829906389,1.407,1631.1,1630.8,0.64233917]
[1693829906569,1.407,1631.1,1630.5,0.64233917]
[1693829906770,6.55213361,1631.3,1630.5,0.64233917]
[1693829906982,4.6922,1631.2,1630.5,1.70752303]
[1693829907269,5.1722,1631.2,1630.6,2.47218386]
[1693829907477,0.51722,1631.1,1630.7,1.407]
[1693829907771,2.14539659,1631.1,1630.8,1.407]
[1693829907971,2.14539659,1631.1,1630.7,1.407]
[1693829908284,2.14539659,1631.1,1630.5,0.64233917]
[1693829908575,2.14539659,1631.1,1630.7,1.407]
[1693829908930,2.14539659,1631.1,1630.8,1.407]
[1693829909542,2.14539659,1631.1,1630.7,1.407]
[1693829909871,2.14539659,1631.1,1630.9,1.407]
[1693829910081,2.14539659,1631.1,1631.0,1.407]
[1693829929273,2.14539659,1631.1,1630.7,3.97060373]
[1693829929274,1.89647897,1631.1,1630.9,1.407]
[1693829931060,2.51179687,1631.1,1630.8,1.407]
[1693829932459,2.51179687,1631.1,1630.7,3.7694]
[1693829932665,2.51179687,1631.1,1630.7,1.407]
[1693829935174,2.51179687,1631.1,1630.8,2.47213278]
[1693829935464,1.84647897,1631.1,1630.8,1.407]
[1693829937860,1.84647897,1631.1,1630.9,1.407]
[1693829940246,1.84647897,1631.1,1630.8,3.7653]
[1693829940553,1.84647897,1631.1,1630.9,1.06511464]
[1693829940762,2.50679687,1631.1,1630.9,1.06511464]
[1693829941051,2.50679687,1631.1,1630.8,1.407]
[1693829941447,2.50679687,1631.1,1630.9,1.06515157]
[1693829942319,1.84647897,1631.1,1630.9,1.06515157]
[1693829942559,1.84647897,1631.1,1630.9,2.47215157]
[1693829942721,1.84647897,1631.1,1630.9,1.407]
[1693829949060,1.84647897,1631.1,1631.0,1.06510445]
[1693829952690,1.84647897,1631.1,1631.0,2.47210445]
[1693829952875,1.84647897,1631.1,1631.0,2.99815881]
[1693829956290,1.84647897,1631.1,1631.0,1.06510445]
[1693829956490,1.84647897,1631.1,1630.8,2.04933917]
[1693829956695,1.84647897,1631.1,1630.9,1.06511208]
[1693829959499,3.08185404,1631.0,1630.9,1.06511208]
[1693829959701,12.74544308,1631.0,1630.6,0.64233917]
[1693829959880,0.3081854,1630.9,1630.5,3.01520373]
[1693829960064,3.3081854,1630.9,1630.6,1.06529064]
[1693829960269,3.3081854,1630.9,1630.7,1.06526222]
[1693829960475,3.3081854,1630.9,1630.6,0.64233917]
[1693829960710,3.3081854,1630.9,1630.6,1.70759324]
[1693829961306,3.0,1630.9,1630.6,3.11459324]
[1693829961493,5.207,1631.0,1630.7,1.06525407]
[1693829961899,5.207,1631.0,1630.6,0.64233917]
[1693829962086,5.207,1631.0,1630.6,1.70758598]
[1693829963295,5.207,1631.0,1630.6,1.06524681]
[1693829963494,3.60255404,1630.9,1630.6,1.06524681]
[1693829963699,0.5207,1630.9,1630.5,0.64233917]
[1693829964028,3.5207,1630.9,1630.5,0.64233917]
[1693829964515,3.0,1630.9,1630.6,1.407]
[1693829964701,4.727,1631.0,1630.6,1.407]
[1693829966563,4.727,1631.0,1630.6,3.5489]
[1693829966729,3.0,1631.0,1630.6,3.5489]
[1693829966894,3.0,1631.0,1630.7,1.0652145]
[1693829967312,3.0,1631.0,1630.7,1.59085987]
[1693829967514,3.0,1631.0,1630.5,3.01520373]
[1693829967718,3.0,1631.0,1630.6,1.06523116]
[1693829967934,3.0,1631.0,1630.6,1.70757033]
[1693829968087,3.0,1631.0,1630.5,4.56730373]
[1693829968294,3.0,1631.0,1630.6,2.47222622]
[1693829968492,3.0,1631.0,1630.6,1.407]
[1693829978716,3.0,1631.0,1630.7,1.06521092]
[1693829978943,3.0,1631.0,1630.7,2.47221092]
[1693829979261,3.0,1631.0,1630.7,3.5653]
[1693829979461,3.0,1631.0,1630.7,3.98606392]
[1693829979956,6.08185404,1631.0,1630.5,0.64233917]
[1693829980257,6.08185404,1631.0,1630.5,2.04933917]
[1693829980462,6.08185404,1631.0,1630.6,1.06524736]
[1693829980682,3.0,1631.0,1630.6,1.06524736]
[1693829987671,3.0,1631.0,1630.6,2.47224736]
[1693829987968,3.0,1631.0,1630.7,2.47224736]
[1693829988153,3.6594479,1631.0,1630.7,1.407]
[1693829989239,3.6594479,1631.0,1630.7,3.7433]
[1693829989650,3.6594479,1631.0,1630.7,1.407]
[1693829989830,3.0,1631.0,1630.7,3.7433]
[1693829991067,3.0,1631.0,1630.7,2.3363]
[1693829991252,3.48627897,1631.1,1630.7,3.7433]
[1693829991582,3.0,1631.0,1630.7,3.7433]
[1693829991752,3.0,1631.0,1630.7,4.18186392]
[1693829997685,3.0,1631.0,1630.7,4.13186392]
[1693829998194,3.0,1631.0,1630.7,3.6933]
[1693830000391,3.0,1631.0,1630.8,1.06517949]
[1693830000702,3.0,1631.0,1630.7,3.6933]
[1693830000892,3.0,1631.0,1630.7,2.2863]
[1693830002407,3.0,1631.0,1630.8,1.06520116]
[1693830004606,3.6486279,1631.0,1630.8,1.06520116]
[1693830005582,1.84647897,1631.1,1630.8,3.11454033]
[1693830005801,4.84647897,1631.1,1630.8,1.407]
[1693830018306,4.84647897,1631.1,1630.9,2.4721236]
[1693830018614,4.84647897,1631.1,1630.9,1.407]
[1693830022865,4.84647897,1631.1,1630.8,2.04933917]
[1693830023064,4.84647897,1631.1,1630.9,1.06511765]
[1693830024639,1.84647897,1631.1,1630.9,1.06511765]
[1693830027706,1.84647897,1631.1,1630.9,4.14697169]
[1693830027841,1.84647897,1631.1,1631.0,2.47211765]
[1693830028637,1.84647897,1631.1,1631.0,1.06511765]
[1693830028851,1.84647897,1631.1,1631.0,1.91198874]
[1693830035158,1.84647897,1631.1,1631.0,1.06511765]
[1693830035764,1.84647897,1631.1,1631.0,1.06503618]
[1693830038713,1.84647897,1631.1,1631.0,1.06503762]
[1693830039817,1.84647897,1631.1,1630.9,6.76125404]
[1693830040116,1.84647897,1631.1,1630.9,4.48885404]
[1693830040269,1.84647897,1631.1,1630.9,5.16738685]
[1693830048646,1.84647897,1631.1,1631.0,1.06503699]
[1693830056115,1.84647897,1631.1,1630.8,4.29803917]
[1693830056311,1.84647897,1631.1,1630.9,1.0650988]
[1693830062267,1.84647897,1631.1,1630.8,2.89103917]
[1693830062426,1.84647897,1631.1,1630.9,1.06511064]
[1693830071093,1.84647897,1631.1,1630.9,1.46072562]
[1693830071397,1.84647897,1631.1,1631.0,1.06507759]
[1693830074357,1.84647897,1631.1,1630.9,1.407]
[1693830074557,1.84647897,1631.1,1630.8,6.76890373]
[1693830074857,1.84647897,1631.1,1630.9,1.06508885]
[1693830076108,1.84647897,1631.1,1630.9,2.15667351]
[1693830076277,1.84647897,1631.1,1630.9,1.09158466]
[1693830079410,1.84647897,1631.1,1630.9,4.1734387]
[1693830080907,1.84647897,1631.1,1630.9,1.09158466]
[1693830081119,1.84647897,1631.1,1630.8,5.80303917]
[1693830081322,1.84647897,1631.1,1630.9,1.06511262]
[1693830081988,1.84647897,1631.1,1630.8,0.64233917]
[1693830082186,1.84647897,1631.1,1630.8,1.70746077]
[1693830084025,1.84647897,1631.1,1630.8,5.75517937]
[1693830084192,1.84647897,1631.1,1630.9,2.28297871]
[1693830084392,1.84647897,1631.1,1631.0,1.0651216]
[1693830085981,1.84647897,1631.1,1630.9,0.57551794]
[1693830086182,1.84647897,1631.1,1630.8,7.26159321]
[1693830086382,1.84647897,1631.1,1630.9,1.06510737]
[1693830095463,1.84647897,1631.1,1630.9,1.70744654]
[1693830104903,1.84647897,1631.1,1630.9,4.78930058]
[1693830105087,1.84647897,1631.1,1631.0,1.06510737]
[1693830107268,1.84647897,1631.1,1630.9,1.70744654]
[1693830107468,1.84647897,1631.1,1630.8,3.73860373]
[1693830107695,1.84647897,1631.1,1630.9,1.06511962]
[1693830126762,1.84647897,1631.1,1630.9,1.70745879]
[1693830129142,1.84647897,1631.1,1630.8,3.73860373]
[1693830129340,1.84647897,1631.1,1630.9,1.06511794]
[1693830131661,1.84647897,1631.1,1630.7,1.60820373]
[1693830131866,1.84647897,1631.1,1630.8,1.06519663]
[1693830132165,1.84647897,1631.1,1630.7,0.64233917]
[1693830132528,1.84647897,1631.1,1630.7,1.70754283]
[1693830132842,3.55687897,1631.1,1630.8,1.06520366]
[1693830133042,0.3556879,1631.0,1630.7,0.64233917]
[1693830133836,3.3556879,1631.0,1630.7,0.64233917]
[1693830135436,3.3556879,1631.0,1630.6,2.67340782]
[1693830137635,3.0,1631.0,1630.6,2.67340782]
[1693830138367,3.55687897,1631.1,1630.6,7.16226186]
[1693830138572,3.55687897,1631.1,1630.7,1.06520409]
[1693830138736,3.55687897,1631.1,1630.7,5.34494326]
[1693830138935,3.55687897,1631.1,1630.8,1.06520409]
[1693830139130,1.84647897,1631.1,1630.8,1.06520409]
[1693830139467,1.84647897,1631.1,1630.8,1.76465842]
[1693830139632,1.84647897,1631.1,1630.8,0.69945433]
[1693830149155,1.84647897,1631.1,1630.8,2.10645433]
[1693830150302,1.84647897,1631.1,1630.9,1.06512942]
[1693830153393,1.84647897,1631.1,1630.9,4.14698346]
[1693830153596,1.84647897,1631.1,1631.0,0.41469835]
[1693830155898,1.84647897,1631.1,1631.0,1.47976231]
[1693830161297,1.84647897,1631.1,1631.0,4.56161635]
[1693830164804,1.84647897,1631.1,1631.0,3.49655239]
[1693830165898,1.84647897,1631.1,1631.0,4.5615917]
[1693830169613,1.84647897,1631.1,1631.0,4.56158836]
[1693830171216,1.84647897,1631.1,1631.0,3.49655239]
[1693830173113,1.84647897,1631.1,1630.9,2.3365]
[1693830197585,1.84647897,1631.1,1631.0,1.06509515]
[1693830203087,1.84647897,1631.1,1630.8,1.60820373]
[1693830203293,1.84647897,1631.1,1630.8,2.67332839]
[1693830203513,1.84647897,1631.1,1630.9,1.06512466]
[1693830203705,2.20013687,1631.1,1630.8,0.64233917]
[1693830203890,2.20013687,1631.1,1630.8,1.70746573]
[1693830207198,1.84647897,1631.1,1630.8,1.70746573]
[1693830210712,1.84647897,1631.1,1630.8,4.78931977]
[1693830210924,1.84647897,1631.1,1630.9,1.70746573]
[1693830211984,1.84647897,1631.1,1630.9,6.19631977]
[1693830212186,1.84647897,1631.1,1631.0,1.06512656]
[1693830212422,1.84647897,1631.1,1631.0,1.68475854]
[1693830212624,1.84647897,1631.1,1631.0,5.40895175]
[1693830212823,1.84647897,1631.1,1631.0,6.81595175]
[1693830223850,1.84647897,1631.1,1631.0,6.17361258]
[1693830225351,1.84647897,1631.1,1631.0,6.81595175]
[1693830225918,1.84647897,1631.1,1631.0,6.17361258]
[1693830226357,1.84647897,1631.1,1631.0,6.81595175]
[1693830226547,1.84647897,1631.1,1631.0,6.17361258]
[1693830226922,1.84647897,1631.1,1631.0,6.81595175]
[1693830227364,1.84647897,1631.1,1631.0,6.17361258]
[1693830229465,1.84647897,1631.1,1631.0,6.81595175]
[1693830229759,1.84647897,1631.1,1631.0,6.17361258]
[1693830229968,1.84647897,1631.1,1631.0,6.81595175]
[1693830232363,1.84647897,1631.1,1631.0,6.17361258]
[1693830236999,1.84647897,1631.1,1631.0,6.81595175]
[1693830237545,1.84647897,1631.1,1631.0,6.17361258]
[1693830237781,1.84647897,1631.1,1631.0,6.81595175]
[1693830238691,1.84647897,1631.1,1631.0,8.22295175]
[1693830238850,1.6808,1631.5,1631.0,8.86844089]
[1693830239052,3.82567069,1631.5,1631.3,1.407]
[1693830239251,3.82567069,1631.5,1631.3,4.48885404]
[1693830240588,3.82567069,1631.5,1631.2,1.407]
[1693830240759,3.82567069,1631.5,1631.2,4.48885404]
[1693830241765,3.82567069,1631.5,1631.2,5.23660795]
[1693830247371,3.82567069,1631.5,1631.3,1.407]
[1693830248386,2.14487069,1631.5,1631.3,4.48885404]
[1693830250742,2.14487069,1631.5,1631.4,4.48885404]
[1693830251299,1.7505,1631.6,1631.4,4.48885404]
[1693830251641,1.7505,1631.6,1631.4,5.16726944]
[1693830256260,1.7505,1631.6,1631.4,2.0854154]
[1693830256560,1.7505,1631.6,1631.3,1.407]
[1693830256720,1.7505,1631.6,1631.3,4.48885404]
[1693830257847,1.74069067,1631.6,1631.3,4.48885404]
[1693830258344,1.74069067,1631.6,1631.3,3.08185404]
[1693830259037,1.74069067,1631.6,1631.3,4.48885404]
[1693830259422,1.74069067,1631.6,1631.3,5.1732111]
[1693830261345,1.74069067,1631.6,1631.3,3.7662111]
[1693830264851,1.74069067,1631.6,1631.3,0.68435706]
[1693830265055,1.74069067,1631.6,1631.2,2.54666696]
[1693830265228,1.74069067,1631.6,1631.3,1.06479577]
[1693830266959,6.14769067,1631.6,1631.0,1.60696263]
[1693830267115,6.70592939,1631.6,1631.1,1.06496448]
[1693830267315,6.70592939,1631.6,1630.9,3.20463983]
[1693830267515,0.67059294,1631.5,1630.9,7.35148186]
[1693830267751,2.14539659,1631.1,1631.0,1.06498799]
[1693830275776,2.14539659,1631.1,1631.0,4.14684203]
[1693830276084,2.14539659,1631.1,1631.0,6.19662708]
[1693830277087,1.7045,1631.4,1631.0,6.19662708]
[1693830277372,1.7045,1631.4,1631.1,6.17350474]
[1693830277373,2.14513361,1631.3,1631.1,6.17350474]
[1693830277577,2.14513361,1631.3,1631.1,5.10851675]
[1693830284388,2.14513361,1631.3,1631.1,2.02666271]
[1693830284588,2.14513361,1631.3,1631.1,1.407]
[1693830298332,2.14513361,1631.3,1631.1,4.48885404]
[1693830299295,2.14513361,1631.3,1631.1,4.43885404]
[1693830299907,2.14513361,1631.3,1631.2,1.0649066]
[1693830300609,2.14513361,1631.3,1631.2,2.4719066]
[1693830300997,2.14513361,1631.3,1631.2,6.39907521]
[1693830301831,2.14513361,1631.3,1631.2,3.31722117]
[1693830302021,2.14513361,1631.3,1631.2,1.0649066]
[1693830303505,1.7379,1631.4,1631.2,1.0649066]
[1693830305898,1.68790086,1631.4,1631.2,1.0649066]
[1693830312561,1.68790086,1631.4,1631.2,1.70769165]
[1693830315067,2.14487069,1631.5,1631.2,1.70769165]
[1693830315265,2.14487069,1631.5,1631.2,4.5162614]
[1693830315468,2.14487069,1631.5,1631.3,1.0649066]
[1693830324055,2.14487069,1631.5,1631.3,4.14676064]
[1693830324357,2.14487069,1631.5,1631.4,1.06482932]
[1693830326571,2.14487069,1631.5,1631.3,3.08185404]
[1693830326871,2.14487069,1631.5,1631.4,0.3081854]
[1693830329177,2.14487069,1631.5,1631.4,2.78000799]
[1693830329537,1.7072,1631.6,1631.4,2.78000799]
[1693830329749,2.14487069,1631.5,1631.4,1.7151854]
[1693830329945,2.14487069,1631.5,1631.4,2.77993336]
[1693830330150,2.14487069,1631.5,1631.4,1.06474796]
[1693830330352,2.14487069,1631.5,1631.2,1.60696263]
[1693830330649,2.14487069,1631.5,1631.3,1.06485166]
[1693830330972,2.14487069,1631.5,1631.2,0.64278505]
[1693830333383,2.14487069,1631.5,1631.2,1.70767212]
[1693830335879,2.14487069,1631.5,1631.2,2.11555709]
[1693830336066,2.14487069,1631.5,1631.3,1.06488707]
[1693830336455,2.14487069,1631.5,1631.2,0.64278505]
[1693830336661,2.14487069,1631.5,1631.2,1.70766795]
[1693830342905,2.14487069,1631.5,1631.2,4.78952199]
[1693830343115,2.14487069,1631.5,1631.3,3.59362015]
[1693830343283,2.14487069,1631.5,1631.4,1.0648829]
[1693830347735,2.14487069,1631.5,1631.4,2.4718829]
[1693830353041,2.14487069,1631.5,1631.4,1.0648829]
[1693830368191,2.14487069,1631.5,1631.4,2.4718829]
[1693830368351,2.14487069,1631.5,1631.4,6.24229671]
[1693830372319,2.14487069,1631.5,1631.4,6.88508176]
[1693830373199,2.14487069,1631.5,1631.4,5.47808176]
[1693830373672,2.14487069,1631.5,1631.4,6.88508176]
[1693830383689,1.5911,1631.8,1631.4,6.88508176]
[1693830383905,1.5911,1631.8,1631.6,1.407]
[1693830384246,2.14460841,1631.7,1631.6,4.48885404]
[1693830384596,2.14460841,1631.7,1631.6,5.55355057]
[1693830384799,2.14460841,1631.7,1631.6,4.48885404]
[1693830385240,2.14460841,1631.7,1631.6,5.55354789]
[1693830385538,2.14460841,1631.7,1631.6,6.462662]
[1693830388921,2.14460841,1631.7,1631.6,5.55354789]
[1693830390543,2.14460841,1631.7,1631.6,1.06469385]
[1693830390711,2.14460841,1631.7,1631.4,0.64278505]
[1693830390914,2.14460841,1631.7,1631.4,1.70752003]
[1693830391310,2.14460841,1631.7,1631.4,3.11452003]
[1693830391515,2.14460841,1631.7,1631.5,1.06473498]
[1693830396856,2.14460841,1631.7,1631.6,3.08185404]
[1693830397032,2.14460841,1631.7,1631.6,6.19637407]
[1693830397552,2.14460841,1631.7,1631.6,5.55358902]
[1693830397755,2.14460841,1631.7,1631.6,6.19637407]
[1693830397961,2.14460841,1631.7,1631.6,6.26964419]
[1693830414512,2.14460841,1631.7,1631.6,1.06473498]
[1693830425306,2.14460841,1631.7,1631.5,0.64278505]
[1693830427098,2.14460841,1631.7,1631.5,1.70752003]
[1693830430828,2.14460841,1631.7,1631.5,2.67169761]
[1693830432138,2.14460841,1631.7,1631.6,1.70752003]
[1693830434132,2.14460841,1631.7,1631.6,7.56842141]
[1693830434303,2.14460841,1631.7,1631.6,6.92563636]
[1693830434503,2.14460841,1631.7,1631.6,8.21392741]
[1693830434720,1.6052,1632.1,1631.6,8.21392741]
[1693830434932,2.14421744,1632.0,1631.7,4.78968421]
[1693830435237,2.14421744,1632.0,1631.8,1.5437034]
[1693830435407,2.14421744,1632.0,1631.8,0.47896842]
[1693830441763,2.14421744,1632.0,1631.8,3.56082246]
[1693830442717,2.14421744,1632.0,1631.9,3.08185404]
[1693830443736,2.14421744,1632.0,1631.9,4.14632307]
[1693830443969,2.14421744,1632.0,1631.9,5.03027174]
[1693830444484,2.14421744,1632.0,1631.9,3.96580271]
[1693830445184,2.14421744,1632.0,1631.9,5.03026957]
[1693830445470,2.14421744,1632.0,1631.9,3.96580271]
[1693830458208,2.14421744,1632.0,1631.9,6.43722391]
[1693830459099,1.5838,1632.3,1631.9,6.43722391]
[1693830459268,1.5838,1632.3,1632.0,2.05072239]
[1693830459474,2.143951,1632.2,1632.0,5.13257643]
[1693830459780,2.143951,1632.2,1632.0,7.35367643]
[1693830462791,2.143951,1632.2,1632.1,1.407]
[1693830467456,2.143951,1632.2,1632.1,4.48885404]
[1693830467765,2.143951,1632.2,1632.1,5.22422168]
[1693830470440,2.143951,1632.2,1632.1,6.28853522]
[1693830477711,2.143951,1632.2,1632.1,6.93163041]
[1693830478070,1.6404,1632.5,1632.1,6.93163041]
[1693830478295,1.6404,1632.5,1632.2,4.14616758]
[1693830478296,2.14368837,1632.4,1632.2,4.14616758]
[1693830478604,2.14368837,1632.4,1632.2,3.77501708]
[1693830481178,2.14368837,1632.4,1632.3,1.06424895]
[1693830481378,2.14368837,1632.4,1632.1,5.50557305]
[1693830481590,1.64368837,1632.4,1632.2,3.11434581]
[1693830481795,1.64368837,1632.4,1632.3,1.06425062]
[1693830482296,1.64368837,1632.4,1632.2,4.48885404]
[1693830482496,1.64368837,1632.4,1632.2,5.56049675]
[1693830485120,1.64368837,1632.4,1632.1,4.05009519]
[1693830485349,1.64368837,1632.4,1632.2,1.06428364]
[1693830486104,1.64368837,1632.4,1632.1,5.72494923]
[1693830486303,1.64368837,1632.4,1632.2,1.06431921]
[1693830486481,1.64368837,1632.4,1632.1,5.08185404]
[1693830486686,1.64368837,1632.4,1632.1,5.891513]
[1693830489811,1.64368837,1632.4,1632.2,1.06432565]
[1693830490138,1.64368837,1632.4,1632.2,4.14617969]
[1693830490353,1.64368837,1632.4,1632.2,3.08185404]
[1693830491933,1.64368837,1632.4,1632.2,4.48885404]
[1693830492132,1.64368837,1632.4,1632.3,0.4488854]
[1693830494324,1.64368837,1632.4,1632.2,3.08185404]
[1693830495366,1.64368837,1632.4,1632.2,4.48885404]
[1693830495561,1.64368837,1632.4,1632.3,3.08185404]
[1693830497144,1.64368837,1632.4,1632.3,6.14603345]
[1693830497551,1.6404,1632.6,1632.3,6.14603345]
[1693830497771,1.6404,1632.6,1632.3,5.9014669]
[1693830498148,1.6404,1632.6,1632.3,3.9014669]
[1693830498356,1.6404,1632.6,1632.3,5.9014669]
[1693830498957,1.6404,1632.6,1632.4,1.407]
[1693830501077,1.6404,1632.6,1632.3,7.3084669]
[1693830501394,1.6404,1632.6,1632.4,0.73084669]
[1693830501548,1.6404,1632.6,1632.3,7.3084669]
[1693830503813,1.6404,1632.6,1632.4,1.407]
[1693830504015,3.89439455,1632.7,1632.5,1.407]
[1693830504144,2.24429455,1632.7,1632.5,1.407]
[1693830504342,2.24429455,1632.7,1632.5,1.8558854]
[1693830505470,2.24429455,1632.7,1632.5,4.93773944]
[1693830509481,2.24429455,1632.7,1632.6,1.407]
[1693830510552,2.24429455,1632.7,1632.5,3.53073944]
[1693830511281,2.24429455,1632.7,1632.5,4.93773944]